bitfinex/quotes_ETHUSD_20241225
["timestamp","ask_amount","ask_price","bid_price","bid_amount"]
[1735102248634,2.86509,3490.3,3489.7,0.98550362]
[1735102249707,2.86509,3490.3,3489.6,2.31694881]
[1735102251037,2.86509,3490.3,3489.7,0.98550362]
[1735102251635,2.86521,3490.2,3489.7,0.98550362]
[1735102251801,2.86527,3490.1,3489.7,0.98550362]
[1735102253430,2.86527,3490.1,3489.6,1.33144519]
[1735102255238,2.86527,3490.1,3489.6,0.7607]
[1735102255738,2.86534,3490.0,3489.6,0.7607]
[1735102256235,2.86502,3490.4,3489.6,0.71467018]
[1735102256605,2.86528,3490.1,3489.6,0.71467018]
[1735102257206,2.86533,3490.0,3489.6,0.71467018]
[1735102257835,2.86533,3490.0,3489.7,0.98558826]
[1735102258944,2.86533,3490.0,3489.6,0.71467018]
[1735102259447,2.86548,3489.9,3489.6,0.71467018]
[1735102259739,2.86536,3490.0,3489.6,0.71467018]
[1735102260448,2.86515,3490.3,3489.6,0.71467018]
[1735102260744,0.45620739,3490.6,3489.6,0.71467018]
[1735102260945,2.86525,3490.1,3489.6,0.71467018]
[1735102261492,2.86525,3490.1,3489.7,0.98566877]
[1735102261493,2.86549,3489.8,3489.7,0.98566877]
[1735102262622,2.86557,3489.7,3489.6,0.71467018]
[1735102263250,1.56908574,3490.1,3489.3,0.8297]
[1735102263449,0.52386157,3490.0,3489.3,0.8297]
[1735102263599,2.86561,3489.7,3489.3,0.8297]
[1735102263794,2.86561,3489.7,3489.3,2.3080824]
[1735102264442,2.86575,3489.5,3489.3,2.3080824]
[1735102265243,2.86575,3489.5,3489.4,0.98658949]
[1735102266247,4.43488574,3489.5,3489.4,0.98658949]
[1735102266543,2.86582,3489.4,3489.3,0.98658949]
[1735102266696,4.14838074,3489.4,3489.3,0.98658949]
[1735102266898,4.95278074,3489.4,3489.3,0.98658949]
[1735102267125,5.76329131,3489.4,3489.3,0.98658949]
[1735102267830,5.76329131,3489.4,3489.0,1.18938255]
[1735102267831,2.86634,3488.8,3488.6,0.8297]
[1735102270223,4.34254103,3489.4,3488.6,0.8297]
[1735102270224,2.86639,3488.7,3488.6,0.8297]
[1735102270425,0.7656,3488.8,3488.1,0.8134]
[1735102270826,2.8668,3488.2,3488.1,0.8134]
[1735102271031,2.8668,3488.2,3487.9,1.18938255]
[1735102271229,2.86697,3488.0,3487.9,1.18938255]
[1735102271852,2.86697,3488.0,3487.8,0.8134]
[1735102273563,2.86654,3488.6,3487.8,0.8134]
[1735102273752,2.86664,3488.4,3487.8,0.8134]
[1735102273948,0.7656,3488.8,3487.8,0.8134]
[1735102274285,2.86625,3488.9,3488.0,0.8134]
[1735102274449,1.79708152,3489.3,3488.1,0.02866567]
[1735102274668,1.79708152,3489.3,3488.3,0.8134]
[1735102274875,2.86589,3489.4,3488.5,0.8134]
[1735102276499,2.86598,3489.2,3488.5,0.8134]
[1735102276702,2.86616,3489.0,3488.5,0.8134]
[1735102278001,2.86647,3488.6,3488.5,0.8134]
[1735102278201,2.86613,3489.1,3488.5,0.8134]
[1735102278356,2.8664,3488.7,3488.5,0.8134]
[1735102279065,5.86565,3489.7,3488.5,0.8134]
[1735102279262,2.86593,3489.3,3488.6,0.8134]
[1735102279810,1.3488795,3490.1,3488.6,0.8134]
[1735102280103,2.86581,3489.5,3488.6,0.84206137]
[1735102280400,2.86584,3489.4,3488.8,0.8134]
[1735102280575,2.86592,3489.3,3488.8,0.8134]
[1735102285234,2.866,3489.2,3488.8,0.8134]
[1735102285432,0.7634,3489.7,3488.8,0.8134]
[1735102285742,0.7634,3489.7,3488.2,1.18938255]
[1735102285743,0.7634,3489.4,3488.3,0.7953]
[1735102286035,2.86649,3488.6,3488.3,0.7953]
[1735102287393,2.86664,3488.4,3488.3,0.7953]
[1735102287594,2.86664,3488.4,3487.8,0.7953]
[1735102287795,2.86648,3488.6,3487.8,0.7953]
[1735102288589,3.34910305,3489.3,3488.0,0.7953]
[1735102288798,2.86612,3489.1,3488.1,0.7953]
[1735102289717,2.86616,3489.0,3488.1,0.7953]
[1735102289918,3.0,3489.4,3488.1,0.7953]
[1735102290124,0.7634,3489.7,3488.4,2.86656]
[1735102290125,2.86565,3489.7,3488.4,2.86656]
[1735102290350,2.86568,3489.6,3488.6,0.7953]
[1735102290863,2.86609,3489.1,3488.3,0.7953]
[1735102292827,6.35681046,3489.5,3488.3,0.7953]
[1735102293023,2.86639,3488.8,3488.3,0.7953]
[1735102293763,1.050039,3488.8,3488.0,0.7953]
[1735102293973,2.86674,3488.3,3488.0,0.7953]
[1735102294621,1.050039,3488.8,3488.0,0.7953]
[1735102294622,2.86664,3488.5,3488.0,0.7953]
[1735102294823,1.050039,3488.8,3488.0,0.7953]
[1735102295671,0.286639,3488.8,3488.0,0.7953]
[1735102295822,2.86656,3488.5,3488.0,0.7953]
[1735102297993,2.86675,3488.3,3488.0,0.7953]
[1735102298145,3.153425,3488.3,3488.0,0.7953]
[1735102298551,2.86689,3488.1,3487.5,0.808]
[1735102298844,0.286675,3488.3,3487.5,0.808]
[1735102299837,2.86696,3488.1,3487.5,0.808]
[1735102301866,3.153425,3488.3,3487.5,0.808]
[1735102302525,2.86675,3488.3,3487.5,0.808]
[1735102302993,2.86658,3488.5,3487.7,0.808]
[1735102303645,3.0,3488.7,3487.7,0.808]
[1735102303871,3.0,3488.6,3487.8,0.808]
[1735102304384,2.86648,3488.6,3487.8,0.808]
[1735102306768,0.8147,3488.7,3487.8,0.808]
[1735102307181,2.86697,3488.0,3487.8,0.808]
[1735102308111,2.86647,3488.6,3487.5,0.808]
[1735102308292,2.86707,3487.9,3487.5,0.808]
[1735102310411,2.8671,3487.9,3487.5,0.808]
[1735102318910,0.7712,3488.1,3487.5,0.808]
[1735102318911,2.86714,3487.8,3487.5,0.808]
[1735102319829,2.86725,3487.7,3487.5,0.808]
[1735102320590,2.86705,3487.9,3487.2,2.00438255]
[1735102320818,3.49883046,3488.1,3487.2,1.18938255]
[1735102320819,3.230785,3488.0,3487.2,1.18938255]
[1735102321009,2.8673,3487.6,3487.2,1.18938255]
[1735102322398,2.8673,3487.6,3487.0,2.6013308]
[1735102322399,2.8673,3487.6,3487.1,0.9876318]
[1735102323801,2.86738,3487.5,3487.1,0.9876318]
[1735102324015,2.86746,3487.4,3487.1,0.9876318]
[1735102324935,2.86746,3487.4,3487.0,0.815]
[1735102326313,2.86731,3487.6,3487.0,0.815]
[1735102326928,2.86713,3487.8,3487.0,0.815]
[1735102327237,4.002005,3488.0,3487.0,1.183301]
[1735102327454,4.002005,3488.0,3487.1,0.815]
[1735102328459,2.86709,3487.9,3487.1,0.815]
[1735102328657,2.86709,3487.9,3487.2,0.98681929]
[1735102329923,2.86709,3487.9,3487.2,2.4672482]
[1735102330124,2.86709,3487.9,3487.3,0.8238]
[1735102330646,2.86689,3488.1,3487.3,0.8238]
[1735102331019,2.86689,3488.1,3487.4,2.4672482]
[1735102331222,2.86689,3488.1,3487.5,0.8238]
[1735102332062,2.86689,3488.1,3487.6,2.4672482]
[1735102334267,0.66954395,3488.5,3487.6,2.4672482]
[1735102334440,2.86673,3488.3,3487.7,0.7861]
[1735102334641,2.86673,3488.3,3487.7,1.77291929]
[1735102335603,2.86689,3488.1,3487.7,1.77291929]
[1735102336091,2.86689,3488.1,3487.8,0.98681929]
[1735102337099,3.18893984,3488.1,3487.8,0.98681929]
[1735102337255,2.86675,3488.3,3487.8,0.98681929]
[1735102337970,2.86675,3488.3,3487.9,0.98681929]
[1735102338507,0.3536084,3488.4,3487.9,0.98681929]
[1735102338669,2.86681,3488.2,3487.9,0.98681929]
[1735102339364,2.86681,3488.2,3487.7,1.97548255]
[1735102340580,2.86684,3488.2,3487.8,0.98722132]
[1735102341803,2.86684,3488.2,3487.9,2.4676057]
[1735102342179,3.2202684,3488.4,3487.9,2.4676057]
[1735102342411,3.2202684,3488.4,3488.0,0.7861]
[1735102343112,2.86674,3488.3,3488.0,3.2537057]
[1735102343741,2.86662,3488.5,3488.0,3.2537057]
[1735102344038,2.86662,3488.5,3488.0,0.7861]
[1735102344994,2.86662,3488.5,3488.1,2.4663255]
[1735102346416,2.86662,3488.5,3488.0,0.7861]
[1735102347340,0.8254,3488.8,3488.0,0.7861]
[1735102347538,2.86664,3488.4,3488.0,0.7861]
[1735102347746,2.86664,3488.4,3488.0,1.16228133]
[1735102348444,2.86628,3488.9,3488.1,2.46650196]
[1735102348445,2.86651,3488.6,3488.1,2.46650196]
[1735102349718,2.86651,3488.6,3488.3,0.8161]
[1735102349947,2.86628,3488.9,3488.3,0.8161]
[1735102350645,2.86628,3488.9,3488.4,0.98660078]
[1735102351579,2.86628,3488.9,3488.3,0.8161]
[1735102352656,2.86628,3488.9,3488.4,1.47873571]
[1735102353170,2.86632,3488.8,3488.4,1.47873571]
[1735102354181,2.86632,3488.8,3488.3,0.8161]
[1735102357719,2.86577,3489.5,3488.5,2.86656]
[1735102357870,1.79708152,3489.7,3488.7,0.8161]
[1735102358074,1.79708152,3489.7,3488.9,0.8161]
[1735102358817,1.79708152,3489.7,3489.1,0.7677]
[1735102359022,2.8654,3490.0,3489.2,0.7677]
[1735102359220,2.8654,3490.0,3489.2,0.7963566]
[1735102359370,2.8654,3490.0,3489.2,0.7677]
[1735102361225,2.8654,3490.0,3489.2,0.79635662]
[1735102361422,2.8654,3490.0,3489.4,0.7677]
[1735102362177,2.72763046,3490.4,3489.4,0.7677]
[1735102362515,5.86462,3490.9,3489.4,0.7677]
[1735102362516,2.8646,3490.9,3489.6,0.7677]
[1735102362716,1.79708152,3491.1,3489.8,0.7677]
[1735102362921,1.79708152,3491.2,3489.9,0.36618697]
[1735102363219,2.86457,3491.0,3490.0,0.7677]
[1735102363432,1.79708152,3491.2,3490.1,0.02864947]
[1735102363594,1.79708152,3491.2,3490.3,0.7677]
[1735102363923,1.79708152,3491.2,3490.5,0.7677]
[1735102364309,2.86427,3491.3,3490.5,0.7677]
[1735102366441,2.8644,3491.2,3490.5,0.7677]
[1735102366611,2.86446,3491.1,3490.5,0.7677]
[1735102366815,3.150906,3491.1,3490.5,0.7677]
[1735102367548,2.86451,3491.0,3490.5,0.7677]
[1735102375560,2.86436,3491.2,3490.5,0.7677]
[1735102376079,2.86428,3491.3,3490.5,0.7677]
[1735102376245,2.86428,3491.3,3490.6,0.363276]
[1735102376446,3.0,3491.8,3490.7,0.7623]
[1735102376654,2.86437,3491.2,3490.7,0.7623]
[1735102377273,3.0,3491.5,3490.7,0.7623]
[1735102377452,2.86444,3491.1,3490.7,0.7623]
[1735102383494,3.0,3491.8,3490.7,0.7623]
[1735102383702,2.86406,3491.6,3490.9,0.7623]
[1735102384570,0.7942,3492.2,3490.9,0.7623]
[1735102384901,2.86368,3492.0,3490.9,0.7623]
[1735102385112,2.8636,3492.1,3490.9,0.7623]
[1735102385113,2.86394,3491.7,3490.9,0.7623]
[1735102385329,0.55971935,3492.4,3491.0,0.79094146]
[1735102385627,2.86349,3492.3,3491.3,0.7623]
[1735102385781,2.86349,3492.3,3491.4,0.02863775]
[1735102385988,2.86349,3492.3,3491.5,0.7623]
[1735102386302,2.86349,3492.3,3491.6,0.7623]
[1735102388518,0.7502,3493.4,3491.7,0.7623]
[1735102388706,2.86281,3493.1,3491.9,0.7968]
[1735102389028,2.86264,3493.3,3492.2,0.7968]
[1735102389232,2.86264,3493.3,3492.4,0.7968]
[1735102389431,2.86264,3493.3,3492.6,0.7968]
[1735102394128,2.86273,3493.2,3492.6,0.7968]
[1735102394796,3.0,3493.6,3492.6,0.7968]
[1735102395159,2.72763046,3493.7,3492.6,0.7968]
[1735102395160,2.86271,3493.2,3492.6,0.7968]
[1735102395457,3.47783046,3494.1,3492.6,0.7968]
[1735102395642,2.86249,3493.5,3492.6,0.7968]
[1735102395816,2.86249,3493.5,3492.7,0.37968]
[1735102396162,2.86249,3493.5,3492.8,0.7968]
[1735102398757,2.86253,3493.5,3492.8,0.7968]
[1735102406464,0.66507118,3494.3,3492.9,0.8255]
[1735102406465,2.86212,3494.0,3492.9,0.8255]
[1735102407123,2.86213,3493.9,3492.9,0.8255]
[1735102407341,2.86213,3493.9,3493.1,0.8255]
[1735102411471,2.96185,3494.3,3493.1,0.8255]
[1735102411472,2.86221,3493.8,3493.1,0.8255]
[1735102412114,0.1,3494.3,3493.1,0.8255]
[1735102412430,3.1,3494.3,3493.1,0.8255]
[1735102412623,2.86246,3493.5,3493.1,0.8255]
[1735102419387,2.86226,3493.8,3493.1,0.8255]
[1735102419584,2.8623,3493.7,3493.1,0.8255]
[1735102420145,2.86241,3493.6,3493.1,0.8255]
[1735102420484,2.86224,3493.8,3493.1,0.8255]
[1735102420681,2.86229,3493.7,3493.1,0.8255]
[1735102421539,2.862,3494.1,3493.1,0.8255]
[1735102421540,2.86213,3493.9,3493.1,0.8255]
[1735102421892,2.86213,3493.9,3492.9,2.86287]
[1735102421893,2.86213,3493.9,3493.2,1.195537]
[1735102422669,2.86213,3493.9,3493.3,0.8267]
[1735102426730,2.86255,3493.4,3493.1,0.8267]
[1735102432055,2.72378152,3494.3,3493.1,0.8267]
[1735102432258,2.86204,3494.1,3493.2,0.8267]
[1735102432554,1.89708152,3494.3,3493.4,0.8267]
[1735102432785,1.89708152,3494.3,3493.7,0.7765]
[1735102433172,0.1,3494.3,3493.7,0.7765]
[1735102434559,0.1,3494.3,3493.8,2.46029288]
[1735102435996,0.1,3494.3,3493.9,0.98411715]
[1735102436276,0.1,3494.3,3493.9,1.27911712]
[1735102436478,2.96183,3494.3,3493.9,1.27911712]
[1735102436639,2.86188,3494.2,3493.9,0.98411715]
[1735102437165,2.86197,3494.1,3493.9,0.98411715]
[1735102437337,2.86197,3494.1,3493.7,0.7765]
[1735102437982,2.86208,3494.0,3493.7,0.7765]
[1735102438191,0.8513,3494.3,3493.7,0.7765]
[1735102438393,2.86229,3493.7,3493.6,1.18938255]
[1735102438574,2.86237,3493.6,3493.5,1.18938255]
[1735102439348,2.86237,3493.6,3493.2,0.8084]
[1735102445208,2.86201,3494.1,3493.2,0.8084]
[1735102445413,2.86224,3493.8,3493.2,0.8084]
[1735102446331,2.86231,3493.7,3493.2,0.8084]
[1735102447890,2.8624,3493.6,3493.2,0.8084]
[1735102448047,0.7513,3493.4,3493.0,1.18938255]
[1735102448242,2.86278,3493.1,3493.0,1.18938255]
[1735102448545,3.63458,3493.1,3493.0,1.18938255]
[1735102449099,3.63458,3493.1,3492.5,1.18938255]
[1735102449303,2.86319,3492.6,3492.5,1.18938255]
[1735102449504,3.63458,3493.1,3492.5,1.18938255]
[1735102449746,2.86303,3492.8,3492.5,1.18938255]
[1735102450205,2.86303,3492.8,3492.3,1.48029805]
[1735102450552,2.86288,3493.0,3492.3,1.48029805]
[1735102450730,2.86278,3493.1,3492.3,1.48029805]
[1735102451246,2.86325,3492.6,3492.3,1.48029805]
[1735102452034,2.86306,3492.8,3492.3,1.48029805]
[1735102452424,2.86283,3493.1,3492.3,1.48029805]
[1735102452641,2.86318,3492.7,3492.2,0.7759]
[1735102457589,1.20157816,3493.5,3493.4,0.7759]
[1735102458084,1.20157816,3493.5,3493.4,3.63844]
[1735102458586,1.20157816,3494.0,3493.4,0.7759]
[1735102458786,1.20157816,3494.0,3493.5,2.86239]
[1735102458948,1.20157816,3494.0,3493.6,0.363829]
[1735102460018,0.1,3494.3,3493.6,2.82491996]
[1735102461111,0.1,3494.3,3493.6,1.84048358]
[1735102462390,0.1,3494.3,3493.6,0.363829]
[1735102462614,0.1,3494.3,3493.7,0.51915015]
[1735102463477,2.9618,3494.3,3493.7,0.51915015]
[1735102463679,2.9618,3494.3,3493.4,1.96528255]
[1735102463988,2.9618,3494.3,3493.4,0.7759]
[1735102467831,0.1,3494.3,3493.4,0.7759]
[1735102468533,0.1,3494.3,3493.4,3.63838]
[1735102468697,0.1,3494.3,3493.5,0.7915]
[1735102468899,0.1,3494.3,3493.6,0.36825998]
[1735102470037,0.1,3494.3,3493.7,0.7915]
[1735102473301,2.86192,3494.2,3493.7,0.7915]
[1735102474842,0.1,3494.3,3493.7,0.7915]
[1735102475149,2.8622,3493.9,3493.3,0.7915]
[1735102475644,2.86202,3494.1,3493.3,1.87158825]
[1735102475840,2.86205,3494.0,3493.3,0.7915]
[1735102481474,0.1,3494.3,3492.9,0.7585]
[1735102481475,0.7962,3493.8,3492.9,0.7585]
[1735102481624,2.72763046,3493.5,3492.8,1.18938255]
[1735102481823,2.86283,3493.1,3492.8,1.18938255]
[1735102483221,2.86283,3493.1,3492.6,0.7585]
[1735102483569,2.86261,3493.4,3492.6,0.7585]
[1735102484465,2.86261,3493.4,3492.6,1.120693]
[1735102484627,3.0,3493.8,3492.7,0.7585]
[1735102484826,2.86289,3493.0,3492.7,0.7585]
[1735102485328,2.86296,3492.9,3492.7,0.7585]
[1735102485978,3.65882,3493.3,3492.2,0.7585]
[1735102486148,3.365882,3493.2,3492.2,0.7585]
[1735102486340,2.86318,3492.7,3492.2,0.7585]
[1735102488205,0.7962,3492.6,3491.8,0.7585]
[1735102488344,2.86336,3492.4,3491.5,1.94788255]
[1735102488540,2.86373,3492.0,3491.5,1.94788255]
[1735102488743,2.86373,3492.0,3491.5,1.13192134]
[1735102490077,2.86373,3492.0,3491.5,0.7585]
[1735102490710,2.72763046,3492.5,3491.5,0.7585]
[1735102490877,2.86338,3492.4,3491.2,2.86434]
[1735102491078,2.86318,3492.7,3491.4,0.7585]
[1735102491293,2.86318,3492.7,3491.6,0.7585]
[1735102491492,2.86318,3492.7,3491.8,0.7585]
[1735102491823,2.86318,3492.7,3491.9,3.60478631]
[1735102492120,2.86318,3492.7,3491.9,0.7585]
[1735102493690,3.52383046,3493.2,3491.9,0.7585]
[1735102494105,2.86304,3492.8,3491.9,0.7585]
[1735102494837,3.52383046,3493.2,3491.9,0.7585]
[1735102494838,2.86278,3493.1,3491.9,0.7585]
[1735102495051,3.52383046,3493.2,3491.9,0.7585]
[1735102495393,2.86318,3492.7,3491.9,0.7585]
[1735102498905,2.86321,3492.6,3491.9,0.7585]
[1735102499947,2.86341,3492.4,3491.9,0.7585]
[1735102501265,2.72763046,3492.4,3491.3,0.7977]
[1735102501438,2.86401,3491.7,3491.3,0.7977]
[1735102503360,2.86378,3491.9,3491.3,0.7977]
[1735102503565,2.86385,3491.8,3491.3,0.7977]
[1735102505124,2.86363,3492.1,3491.5,0.7977]
[1735102506361,2.72763046,3492.4,3491.5,0.7977]
[1735102506565,2.86347,3492.3,3491.5,0.7977]
[1735102507229,2.86355,3492.2,3491.5,0.7977]
[1735102510149,2.72763046,3492.4,3491.5,0.7977]
[1735102510494,2.72763046,3492.8,3491.5,0.7977]
[1735102510647,2.86337,3492.4,3491.7,0.8277]
[1735102511288,2.86337,3492.4,3491.7,0.85633578]
[1735102511453,2.86337,3492.4,3491.7,0.8277]
[1735102511653,2.86337,3492.4,3491.7,0.85633578]
[1735102512596,2.86348,3492.3,3491.7,0.8277]
[1735102512797,2.86356,3492.2,3491.7,0.8277]
[1735102516381,2.72763046,3492.8,3491.7,0.8277]
[1735102516724,2.86337,3492.4,3491.7,0.8277]
[1735102518133,6.52620551,3492.8,3491.7,0.8277]
[1735102518323,2.86344,3492.3,3491.7,0.8277]
[1735102522195,2.86359,3492.2,3491.7,0.8277]
[1735102522389,3.66312551,3492.8,3491.7,0.8277]
[1735102522591,4.26821455,3492.7,3491.7,0.8277]
[1735102523461,1.40510455,3492.7,3491.7,0.8277]
[1735102523615,2.86336,3492.4,3491.7,0.8277]
[1735102527168,2.86336,3492.4,3491.8,0.98654243]
[1735102527960,2.86336,3492.4,3491.9,2.46795934]
[1735102528959,2.86318,3492.7,3492.0,0.83]
[1735102529264,2.86282,3493.1,3492.0,0.83]
[1735102529483,2.86282,3493.1,3492.1,0.83]
[1735102529620,2.86302,3492.9,3492.1,0.83]
[1735102529973,2.86309,3492.8,3492.1,0.83]
[1735102530171,2.86309,3492.8,3492.1,1.34431125]
[1735102530374,5.35611198,3493.2,3492.1,1.34431125]
[1735102530522,2.8632,3492.6,3492.2,2.46795934]
[1735102531895,2.8632,3492.6,3492.1,0.83]
[1735102533752,2.8632,3492.6,3492.2,2.47085563]
[1735102533952,2.86278,3493.1,3492.2,2.47085563]
[1735102534154,2.86322,3492.6,3492.2,2.47085563]
[1735102534913,2.86322,3492.6,3492.1,0.83]
[1735102535610,2.86305,3492.8,3492.1,0.83]
[1735102535816,1.79708152,3493.2,3492.3,0.7686]
[1735102535970,1.79708152,3493.2,3492.4,0.79722829]
[1735102536311,1.79708152,3493.2,3492.4,0.7686]
[1735102536861,1.79708152,3493.2,3492.5,0.7686]
[1735102537089,2.86255,3493.4,3492.7,1.95798255]
[1735102537295,2.86295,3492.9,3492.7,1.95798255]
[1735102537651,0.7555,3493.3,3492.7,1.95798255]
[1735102537652,2.86303,3492.8,3492.7,1.95798255]
[1735102537891,2.86303,3492.8,3492.7,1.18938255]
[1735102538075,3.61853,3492.8,3492.3,1.18938255]
[1735102538287,2.86324,3492.6,3492.3,1.18938255]
[1735102539201,0.7555,3492.8,3492.1,0.7686]
[1735102539528,2.86334,3492.5,3492.1,0.7686]
[1735102539679,2.86334,3492.5,3492.2,0.37443134]
[1735102540362,2.86334,3492.5,3492.2,1.36267033]
[1735102541806,2.86334,3492.5,3492.2,0.37443134]
[1735102543404,2.86334,3492.5,3492.1,0.7686]
[1735102544662,2.86334,3492.5,3492.2,0.98854989]
[1735102545677,2.86334,3492.5,3492.1,0.7686]
[1735102547610,2.86334,3492.5,3492.2,2.4708576]
[1735102548209,2.86344,3492.3,3492.2,2.4708576]
[1735102548771,2.86344,3492.3,3492.2,0.98834304]
[1735102549801,2.86311,3492.7,3492.2,0.98834304]
[1735102550018,5.44836152,3493.2,3492.3,0.7508]
[1735102550223,2.86312,3492.7,3492.3,0.7508]
[1735102551426,2.86312,3492.7,3492.4,0.98898206]
[1735102552615,3.65128,3493.2,3492.3,0.7508]
[1735102552616,2.8632,3492.6,3492.3,0.7508]
[1735102555019,3.6714,3492.6,3492.2,1.18938255]
[1735102555222,3.6714,3492.6,3492.4,0.98899329]
[1735102555517,0.8082,3492.6,3492.4,0.98899329]
[1735102555718,2.86327,3492.5,3492.4,0.98899329]
[1735102556223,2.86327,3492.5,3492.1,1.18938255]
[1735102557519,2.86327,3492.5,3492.2,0.98924764]
[1735102558423,2.86327,3492.5,3492.0,1.18938255]
[1735102559623,2.86327,3492.5,3492.1,2.47316521]
[1735102560108,0.8082,3492.6,3492.1,2.47316521]
[1735102560109,2.86344,3492.3,3492.1,2.47316521]
[1735102560710,2.86344,3492.3,3492.2,0.98926608]
[1735102561928,0.8082,3492.6,3492.2,0.98926608]
[1735102562085,2.86319,3492.6,3491.9,1.95258255]
[1735102562284,2.86319,3492.6,3492.0,0.37389134]
[1735102563123,2.8633,3492.5,3492.0,0.37389134]
[1735102563319,2.8633,3492.5,3492.2,1.18938255]
[1735102564325,2.8633,3492.5,3492.3,0.98908527]
[1735102564947,2.86336,3492.4,3492.3,0.98908527]
[1735102565530,2.86336,3492.4,3492.1,1.18938255]
[1735102566760,2.86336,3492.4,3492.2,2.4732248]
[1735102567947,2.86336,3492.4,3492.3,0.98928992]
[1735102569349,2.86336,3492.4,3492.0,1.18938255]
[1735102569530,2.86346,3492.3,3492.0,1.18938255]
[1735102569735,2.86349,3492.3,3492.0,1.18938255]
[1735102570448,2.86349,3492.3,3492.1,2.47264136]
[1735102571716,2.86349,3492.3,3491.9,1.95258255]
[1735102572757,2.86349,3492.3,3492.0,3.66093023]
[1735102573463,0.7516,3492.8,3492.0,3.66093023]
[1735102573618,2.86322,3492.6,3492.0,4.47949859]
[1735102573820,2.86322,3492.6,3492.1,2.47154768]
[1735102574955,1.79708152,3493.0,3492.2,0.85173331]
[1735102575126,1.79708152,3493.0,3492.4,0.8231]
[1735102575333,1.79708152,3493.2,3492.6,0.8231]
[1735102575542,1.79708152,3493.2,3492.4,0.8231]
[1735102575712,1.79708152,3493.2,3492.8,0.8231]
[1735102576257,1.79708152,3493.2,3492.9,0.8231]
[1735102576558,2.86224,3493.8,3493.0,0.368611]
[1735102577712,2.86224,3493.8,3493.1,2.47154768]
[1735102578556,2.86236,3493.7,3493.1,2.47154768]
[1735102578961,2.86236,3493.7,3493.2,0.98861907]
[1735102579334,0.7516,3493.9,3493.2,0.98861907]
[1735102579530,2.86239,3493.6,3493.2,0.98861907]
[1735102579767,2.86239,3493.6,3493.3,0.25466126]
[1735102580285,2.86223,3493.8,3493.3,0.25466126]
[1735102580491,2.86223,3493.8,3493.0,0.368611]
[1735102581694,2.86223,3493.8,3493.1,0.98581584]
[1735102583054,2.86223,3493.8,3493.0,0.368611]
[1735102584772,0.7516,3493.9,3493.0,0.368611]
[1735102585086,2.8623,3493.7,3493.0,0.368611]
[1735102585296,2.8623,3493.7,3493.1,0.4844869]
[1735102585468,2.8623,3493.7,3493.0,0.368611]
[1735102585793,2.86241,3493.6,3493.0,0.368611]
[1735102587888,2.86241,3493.6,3492.9,0.8231]
[1735102588303,2.86245,3493.5,3492.9,0.8231]
[1735102588449,0.7516,3493.9,3492.9,0.8231]
[1735102588450,2.86256,3493.4,3492.9,0.8231]
[1735102595007,2.86279,3493.1,3492.9,0.8231]
[1735102595207,2.86297,3492.9,3492.6,0.7739]
[1735102595621,0.779,3493.4,3492.6,0.7739]
[1735102595825,2.86311,3492.7,3492.6,0.7739]
[1735102596030,2.86311,3492.7,3492.3,1.96328255]
[1735102596916,2.86303,3492.8,3492.3,1.96328255]
[1735102597091,2.8633,3492.5,3492.3,1.96328255]
[1735102597432,2.8633,3492.5,3492.3,0.7739]
[1735102601328,2.8633,3492.5,3491.8,0.8305]
[1735102601329,2.86377,3491.9,3491.8,0.8305]
[1735102601878,2.86377,3491.9,3491.7,1.18938255]
[1735102602205,3.66519,3492.3,3491.7,1.18938255]
[1735102602206,2.86385,3491.8,3491.7,1.18938255]
[1735102602928,2.86364,3492.1,3491.4,0.8305]
[1735102603133,2.86398,3491.7,3491.4,0.8305]
[1735102603744,2.86405,3491.6,3491.4,0.8305]
[1735102603944,2.86416,3491.5,3491.2,0.7902]
[1735102606029,0.7881,3492.0,3491.2,0.7902]
[1735102606232,2.86395,3491.7,3491.2,0.7902]
[1735102609567,3.65211,3491.6,3490.9,0.7902]
[1735102609770,2.86411,3491.5,3490.9,0.7902]
[1735102610536,0.7881,3491.6,3490.9,0.7902]
[1735102610737,2.86409,3491.5,3490.6,1.97958255]
[1735102610938,2.86438,3491.2,3490.6,1.97958255]
[1735102611650,2.86438,3491.2,3490.6,0.7902]
[1735102613955,2.86426,3491.3,3490.3,0.8098]
[1735102614153,2.86435,3491.2,3490.3,0.8098]
[1735102616383,2.86444,3491.1,3490.3,0.8098]
[1735102616687,2.86444,3491.1,3490.3,1.477302]
[1735102617886,2.86451,3491.0,3490.3,1.477302]
[1735102618556,2.86451,3491.0,3490.3,0.8098]
[1735102618750,2.86484,3490.6,3490.3,0.8098]
[1735102619458,2.86484,3490.6,3489.8,4.18938255]
[1735102619459,0.7946,3490.9,3489.9,0.8098]
[1735102619676,2.8648,3490.7,3489.9,0.8098]
[1735102619983,2.86508,3490.3,3489.9,0.8098]
[1735102629613,2.8648,3490.7,3489.9,0.8098]
[1735102629614,2.86475,3490.7,3489.9,0.8098]
[1735102629784,2.86499,3490.5,3489.9,0.8098]
[1735102629954,2.86508,3490.4,3489.9,0.8098]
[1735102630569,0.92516005,3490.6,3489.9,0.8098]
[1735102630769,2.72763046,3490.8,3489.9,0.8098]
[1735102631058,2.86497,3490.5,3489.9,0.8098]
[1735102631971,2.86476,3490.7,3489.9,0.8098]
[1735102632332,4.010872,3491.8,3489.6,2.86557]
[1735102632333,0.8014,3491.5,3490.3,0.7781]
[1735102633707,2.8643,3491.3,3490.3,0.7781]
[1735102633910,2.8643,3491.3,3490.4,0.364319]
[1735102634077,2.8643,3491.3,3490.5,0.7781]
[1735102634571,0.8014,3491.5,3490.5,0.7781]
[1735102634909,2.86435,3491.2,3490.5,0.7781]
[1735102636806,2.86441,3491.2,3490.5,0.7781]
[1735102640604,0.8014,3491.5,3490.5,0.7781]
[1735102641078,2.86463,3490.9,3490.5,0.7781]